Cogmind - Beta 14 @@@ ROGUE MODE // 2024.08.27 @ 18:55:15 Player: OctagonalPrism Result: Destroyed by G-34 Mercenary with Small Laser Performance ------------- Evolutions (0) 0 Regions Visited (4) 800 Robots Destroyed (29) 145 Value Destroyed (579) 579 Prototype IDs (24) 480 Alien Tech Used (0) 0 Bonus (300) 300 TOTAL SCORE: 2304 Bonus ------- Aligned with FarCom 300 Cogmind --------- Core Integrity 0/250 Matter 300/300 Energy 160/160 System Corruption 1% Temperature Cool (6) Movement Rolling (95) Ox1 Location -9/Mines Parts ------- > --- POWER (1) -------- Light Nuclear Core > --- PROPULSION (2) --- Wheel Wheel > --- UTILITY (2) ------ Large Storage Unit > --- WEAPON (2) ------- Hammer > --- INVENTORY (15) --- Flying Fortress v7 Signal Interpreter EM Pulse Gun Small Laser Particle Gun Rocket Launcher Peak State ------------ > --- POWER ------------ Light Nuclear Core > --- PROPULSION ------- Wheel Wheel > --- UTILITY ---------- Large Storage Unit Experimental Sensor Array > --- WEAPON ----------- EM Pulse Gun Hammer > --- INVENTORY -------- Signal Interpreter Small Laser Particle Gun [Rating: 17] Favorites ----------- Power Light Nuclear Core Engine Ion Engine Power Core Light Nuclear Core Propulsion Light Treads Treads Light Treads Wheel Wheel Utility Large Storage Unit Device Sensor Array Storage Large Storage Unit Weapon Hammer Energy Gun EM Pulse Gun Ballistic Gun Light Assault Rifle Impact Weapon Hammer Build | -11 -10 -10 -10 -9 ------- Run | Yrd Mat Min Exi Min Slots Evolved . | . . . . . Power . | . . . . . Propulsion . | . . . . . Utility . | . . . . . Weapon . | . . . . . Parts Attached 29 | 6 18 5 . . Power 5 | 1 4 . . . Engine 4 | 1 3 . . . Core 1 | . 1 . . . Reactor . | . . . . . Propulsion 8 | 2 4 2 . . Treads 6 | 2 4 . . . Leg . | . . . . . Wheel 2 | . . 2 . . Hover . | . . . . . Flight . | . . . . . Utility 5 | 1 3 1 . . Device 2 | . 1 1 . . Storage 3 | 1 2 . . . Processor . | . . . . . Hackware . | . . . . . Protection . | . . . . . Artifact . | . . . . . Weapon 11 | 2 7 2 . . Energy Gun 6 | 1 3 2 . . Energy Cannon . | . . . . . Ballistic Gun 4 | 1 3 . . . Ballistic Cannon . | . . . . . Launcher . | . . . . . Special Weapon . | . . . . . Impact Weapon 1 | . 1 . . . Slashing Weapon . | . . . . . Piercing Weapon . | . . . . . Special Melee Weapon . | . . . . . Unidentified Prototypes 1 | . . 1 . . Parts Lost 6 | . 4 2 . . Power . | . . . . . Propulsion 2 | . 1 1 . . Utility . | . . . . . Weapon 4 | . 3 1 . . Highest Loss Streak 2 | . 2 1 . . To Critical Strikes . | . . . . . Average Slot Usage (%) 87 | . 93 84 73 71 Engine 6 | . 12 . . . Core 7 | . 1 14 14 14 Treads 14 | . 26 3 . . Wheel 7 | . . 11 28 28 Device 11 | . 11 14 2 . Storage 14 | . 14 14 14 14 Energy Gun 10 | . 13 11 . . Ballistic Gun 6 | . 12 . . . Impact Weapon 7 | . 1 14 14 14 Peak Build Rating 17 | 6 9 17 16 10 Average Rating 10 | 4 6 14 9 10 On Entrance 8 | . 6 9 17 10 Naked Turns . | . . . . . Heaviest Build 31 | 14 31 31 28 27 Greatest Support 40 | 40 40 20 20 20 Greatest Overweight (x) 9 | . 4 9 1 1 Average Overweight (x) . | . . 1 1 1 Largest Inventory Capacity 15 | 8 15 15 15 15 Average Capacity 13 | 6 11 15 15 15 Most Carried 9 | . 6 4 9 9 Average Carried 2 | . 1 3 6 9 Final Capacity 15 | 8 15 15 15 15 Final Carried 9 | . 2 4 9 9 Class Distribution -------------------- 68% | Mutant 31% | Scavenger-Mutant Dominant Class ---------------- Scavenger-Mutant | -10/Materials Mutant | -10/Mines Mutant | -10/Exiles Mutant | -9/Mines Resources | -11 -10 -10 -10 -9 ----------- Run | Yrd Mat Min Exi Min Matter Collected 609 | 211 329 69 . . Remotely . | . . . . . Salvage Created 831 | . 564 267 . . Parts 59 | . 44 15 . . Haulers Intercepted 1 | . 1 . . . Recyclers Shooed 1 | . 1 . . . Parts Field Recycled . | . . . . . Retrieved Matter . | . . . . . Parts Self-Destructed . | . . . . . Prevented . | . . . . . Kills | -11 -10 -10 -10 -9 ------- Run | Yrd Mat Min Exi Min Combat Hostiles Destroyed 17 | . 11 6 . . Melee 2 | . . 2 . . Guns 13 | . 10 3 . . Classes Destroyed 8 | . 7 1 . . Worker 2 | . 2 . . . Builder 3 | . 1 2 . . Tunneler 1 | . . 1 . . Hauler 1 | . 1 . . . Operator 2 | . 2 . . . Watcher 3 | . 3 . . . Swarmer 6 | . 3 3 . . Grunt 11 | . 8 3 . . Best Kill Streak 6 | . 6 3 . . Combat Bots Only 3 | . 3 3 . . Max Kills in Single Turn 2 | . 2 1 . . Gunslinging 1 | . 1 . . . Exploded . | . . . . . Melee 1 | . . 1 . . Uniques/NPCs Destroyed . | . . . . . Combat | -11 -10 -10 -10 -9 -------- Run | Yrd Mat Min Exi Min Hostile Shots Fired 128 | . 99 21 . 8 Missed 39 | . 28 8 . 3 Damage Taken 1110 | . 910 143 . 57 Core 260 | . 157 46 . 57 Absorbed by Shields . | . . . . . Core Remaining (%) 100 | 100 . . . . Volleys Fired 86 | . 63 23 . . Largest 2 | . 2 1 . . Hottest 60 | . 60 40 . . Shots Fired 142 | . 119 23 . . Gun 142 | . 119 23 . . Cannon . | . . . . . Launcher . | . . . . . Special . | . . . . . Kinetic 61 | . 61 . . . Thermal 44 | . 44 . . . Explosive . | . . . . . Electromagnetic 37 | . 14 23 . . Robot Hit Streak 16 | . 10 16 . . Robot Miss Streak 5 | . 5 1 . . Penetration Max . | . . . . . Secondary Targets 3 | . 3 . . . Max Gunslinging Chain 1 | . 1 . . . Shots Hit Robots 101 | . 76 25 . . Core Hits 45 | . 34 11 . . Critical Kills . | . . . . . Critical Parts Destroyed 3 | . 1 2 . . Critical Strikes 3 | . 1 2 . . Smash 3 | . 1 2 . . Melee Attacks 13 | . 5 8 . . Impact 13 | . 5 8 . . Slashing . | . . . . . Piercing . | . . . . . Sneak Attacks 1 | . . 1 . . Combat Hostiles . | . . . . . Follow-up Attacks . | . . . . . Damage Inflicted 1484 | . 939 545 . . Guns 1083 | . 818 265 . . Cannons . | . . . . . Explosions 111 | . . 111 . . Melee 290 | . 121 169 . . Ramming . | . . . . . Kinetic 396 | . 396 . . . Thermal 432 | . 321 111 . . Explosive . | . . . . . Electromagnetic 366 | . 101 265 . . Impact 290 | . 121 169 . . Slashing . | . . . . . Piercing . | . . . . . Highest Corruption 1 | . 1 1 1 1 Average Corruption 1 | . 1 1 1 1 Corruption Purged . | . . . . . Corruption Blocked . | . . . . . Effects 8 | . 1 4 3 . Message Errors 3 | . 1 2 . . Matter Fused 2 | . . 2 . . Data Loss (minor) 1 | . . . 1 . Data Loss (major) 2 | . . . 2 . Overload Shots . | . . . . . Overflow Damage 164 | . 44 120 . . Projectiles . | . . . . . Explosions 22 | . . 22 . . Melee 142 | . 44 98 . . Knockbacks . | . . . . . Impact . | . . . . . Kinetic . | . . . . . Secondary . | . . . . . Self-Inflicted Damage . | . . . . . Shots . | . . . . . Rammed . | . . . . . Targets Rammed . | . . . . . Kicked . | . . . . . Crushed . | . . . . . Highest Temperature 96 | . 96 63 . . Average Temperature 30 | . 35 18 . . Received Heat Transfer 519 | . 447 42 . 30 Siege Activations . | . . . . . Robots Corrupted 3 | . 1 2 . . Combat Hostiles 2 | . 1 1 . . Parts Fried 6 | . . 6 . . Impact Corruptions 7 | . 2 5 . . Robots Melted . | . . . . . Combat Hostiles . | . . . . . Parts Melted 1 | . 1 . . . Heat Transferred 875 | . 725 150 . . Parts Sabotaged . | . . . . . Parts Stolen . | . . . . . Parts Stripped . | . . . . . Power Chain Reactions 2 | . . 2 . . Alert | -11 -10 -10 -10 -9 ------- Run | Yrd Mat Min Exi Min Peak Influence 261 | . 261 70 . . Initial 17 | . . 17 . . Average 66 | . 98 35 . . Maximum Alert Level 1 | . 1 . . . Low Security (%) 93 | 100 87 100 . 100 Level 1 6 | . 12 . . . Level 2 . | . . . . . Level 3 . | . . . . . Level 4 . | . . . . . Level 5 . | . . . . . High Security . | . . . . . Max Security . | . . . . . Squads Dispatched 3 | . 3 . . . Investigation 1 | . 1 . . . Extermination . | . . . . . Reinforcement 2 | . 2 . . . Assault . | . . . . . Garrison . | . . . . . Intercept . | . . . . . Searches Triggered . | . . . . . Construction Impeded . | . . . . . Haulers Reinforced . | . . . . . Active Scanning Responses . | . . . . . Cargo Convoy Interrupts . | . . . . . Stealth | -11 -10 -10 -10 -9 --------- Run | Yrd Mat Min Exi Min Distress Signals 1 | . 1 . . . Communications Jammed . | . . . . . Distress Signals . | . . . . . Times Spotted 29 | . 20 6 . 3 Peak Tracking Total 4 | . 4 3 . 3 Tactical Retreats 3 | . 3 . . . Traps | -11 -10 -10 -10 -9 ------- Run | Yrd Mat Min Exi Min Traps Triggered 2 | . 2 . . . Indirectly . | . . . . . Trap Hack Attempts . | . . . . . Triggered . | . . . . . Disarmed 4 | . 4 . . . Reprogrammed . | . . . . . Reused . | . . . . . Traps Extracted . | . . . . . Installed . | . . . . . Triggered . | . . . . . Machines | -11 -10 -10 -10 -9 ---------- Run | Yrd Mat Min Exi Min Machines Disabled . | . . . . . Max in Single Turn . | . . . . . Machines Repaired . | . . . . . Machines Dismantled . | . . . . . Machines Sabotaged . | . . . . . Overloaded Fab Kills . | . . . . . Hacking | -11 -10 -10 -10 -9 --------- Run | Yrd Mat Min Exi Min Machines Accessed 8 | . 6 1 1 . Terminals 6 | . 5 1 . . Fabricators . | . . . . . Repair Stations . | . . . . . Recycling Units 1 | . 1 . . . Scanalyzers . | . . . . . Garrison Access . | . . . . . Total Hacks 24 | . 20 3 1 . Successful 16 | . 14 1 1 . Failed 8 | . 6 2 . . Catastrophic 1 | . 1 . . . Database Lockouts . | . . . . . Manual 14 | . 13 . 1 . Terminals 21 | . 18 3 . . Fabricators . | . . . . . Repair Stations . | . . . . . Recycling Units 2 | . 2 . . . Scanalyzers . | . . . . . Garrison Access . | . . . . . Terminal Hacks 8 | . 6 1 1 . Terminal Index 1 | . 1 . . . Alert Level 1 | . 1 . . . Unreport Threat 1 | . 1 . . . Locate Traps 2 | . 2 . . . Disarm Traps 1 | . 1 . . . Patrol Status 1 | . . 1 . . Derelict Proto ID Bank 1 | . . . 1 . Fabricator Hacks . | . . . . . Repair Station Hacks . | . . . . . Recycling Unit Hacks 1 | . 1 . . . Report Inventory 1 | . 1 . . . Scanalyzer . | . . . . . Garrison Access Hacks . | . . . . . Unauthorized Hacks 7 | . 7 . . . Terminals 6 | . 6 . . . Track 1 | . 1 . . . Assimilate 1 | . 1 . . . Botnet 3 | . 3 . . . Operators 1 | . 1 . . . Fabricators . | . . . . . Repair Stations . | . . . . . Recycling Units 1 | . 1 . . . Recyclers 1 | . 1 . . . Scanalyzers . | . . . . . Garrison Access . | . . . . . Data Cores Recovered . | . . . . . Used . | . . . . . Hacking Detections 5 | . 4 1 . . Full Trace Events 2 | . 1 1 . . Feedback Events . | . . . . . Feedback Blocked . | . . . . . Robot Schematics Acquired . | . . . . . Robots Built . | . . . . . Authchips . | . . . . . Time . | . . . . . Total Robot Build Rating . | . . . . . Part Schematics Acquired . | . . . . . Parts Built . | . . . . . Authchips . | . . . . . Time . | . . . . . Total Part Build Rating . | . . . . . Parts Repaired . | . . . . . Time . | . . . . . Parts Recycled . | . . . . . Recycled Matter . | . . . . . Retrieved Matter . | . . . . . Retrieved Components . | . . . . . Parts Scanalyzed . | . . . . . Part Schematics Acquired . | . . . . . Parts Damaged . | . . . . . Bothacking | -11 -10 -10 -10 -9 ------------ Run | Yrd Mat Min Exi Min Used RIF Installer . | . . . . . Robots Hacked . | . . . . . Non-combat . | . . . . . Combat . | . . . . . Robot Hacks Applied . | . . . . . Relay Couplers Released . | . . . . . Fabnet Peak Effective % . | . . . . . Robots Rewired . | . . . . . Allies Hacked . | . . . . . Hacks Repelled . | . . . . . Allies | -11 -10 -10 -10 -9 -------- Run | Yrd Mat Min Exi Min Total Allies 3 | . . 3 . . Largest Group 3 | . . 3 3 . Highest-Rated Group 40 | . . 40 40 . Highest-Rated Ally 16 | . . 16 16 . Total Orders . | . . . . . Ally Attacks 2 | . . 2 . . Total Damage 28 | . . 28 . . Kills . | . . . . . Allies Corrupted . | . . . . . Allies Melted . | . . . . . Intel | -11 -10 -10 -10 -9 ------- Run | Yrd Mat Min Exi Min Robot Analysis Total . | . . . . . Derelict Logs Recovered 1 | . . 1 . . Drone Launches . | . . . . . Drone Recoveries . | . . . . . Exploration | -11 -10 -10 -10 -9 ------------- Run | Yrd Mat Min Exi Min Turns Passed 2242 | 80 1061 872 203 26 Spaces Moved 1261 | 47 507 468 212 27 Core 54 | 3 1 50 . . Treads 641 | 44 506 91 . . Legs . | . . . . . Wheels 566 | . . 327 212 27 Hover . | . . . . . Flight . | . . . . . Fastest Speed 50 | 50 160 95 95 95 Average Speed 151 | 152 164 166 95 95 Slowest Speed 500 | 160 250 500 95 95 Overloaded Moves . | . . . . . Propulsion Burnouts . | . . . . . Robots Hopped . | . . . . . Cave-ins Triggered . | . . . . . Exploration Rate (%) 48 | 4 86 96 42 15 Regions Visited 4 Branch Regions 3 Pre-discovered Areas . | . . . . . Known Exits Taken . | . . . . . Unknown Exits Taken 4 | 1 1 1 1 . Scrap Searched 3 | . . 3 . . Spaces Dug . | . . . . . Terrain Destroyed 8 | . . 8 . . Melee . | . . . . . Projectile . | . . . . . AOE 8 | . . 8 . . Terrain Rammed . | . . . . . Walls Destroyed . | . . . . . Machines Disabled . | . . . . . Actions | -11 -10 -10 -10 -9 --------- Run | Yrd Mat Min Exi Min Total 1423 | 52 608 521 215 27 Wait 21 | . 5 16 . . Move 1257 | 46 506 467 211 27 Hop . | . . . . . Pick Up 6 | . 3 2 1 . Fast Attach 18 | 6 9 3 . . Attach 1 | . 1 . . . Detach 2 | . . . 2 . Swap 10 | . 8 2 . . Drop 9 | . 8 . 1 . Fire 86 | . 63 23 . . Melee 13 | . 5 8 . . Ram . | . . . . . Kick . | . . . . . Crush . | . . . . . Escape Stasis . | . . . . . Rewire . | . . . . . Trap . | . . . . . Miscellaneous . | . . . . . Route ------- -11/Scrapyard -10/Materials (discovered 3 exits: [*Mat x2] / *Min) -10/Mines (discovered 4 exits: [*Mat x2] / *Exi / [*Sub]) -10/Exiles -9/Mines History --------- Turn | Location | Event 8 | -11/Scrapyard | Discovered new exit (range 16) 81 | -11/Scrapyard | Entered Materials 308 | -10/Materials | Build established: Mutant 491 | -10/Materials | Discovered new exit (range 9) 782 | -10/Materials | Build established: Scavenger-Mutant 786 | -10/Materials | Discovered new exit (range 7) 865 | -10/Materials | Discovered new exit (range 16) 973 | -10/Materials | Core integrity fell below 50% 1142 | -10/Materials | Entered Mines 1142 | -10/Mines | Discovered new exit (range 7) 1184 | -10/Mines | Learned Materials terminal intel 1263 | -10/Mines | Found a damaged Exp. Sensor Array with a note attached 1268 | -10/Mines | Found Prototype Device 1268 | -10/Mines | Identified Exp. Sensor Array 1498 | -10/Mines | Build established: Mutant 1702 | -10/Mines | Received a Rocket Launcher from a helpful Derelict 1800 | -10/Mines | Discovered new exit (range 10) 1858 | -10/Mines | Assisted by bots powering up and referring to "LRC-V3" 1900 | -10/Mines | Discovered new exit (range 3) 1958 | -10/Mines | Core integrity fell below 20% 1999 | -10/Mines | Deemed a non-threat by the Exiles lab entrance 1999 | -10/Mines | Discovered new exit (range 5) 2014 | -10/Mines | Entered Exiles 2014 | -10/Exiles | Accompanied by 3 allies 2027 | -10/Exiles | Discovered new exit (range 15) 2039 | -10/Exiles | Met 8R-AWN 2055 | -10/Exiles | Met EX-HEX 2083 | -10/Exiles | Met EX-BIN 2094 | -10/Exiles | Aligned with FarCom system 2095 | -10/Exiles | Given EX-Vault access code 2117 | -10/Exiles | Opened EX-Vault 2121 | -10/Exiles | Found Flying Fortress v7 2142 | -10/Exiles | Warned to stay clear of 0b10 Research branches 2217 | -10/Exiles | Left Exiles lab with Flying Fortress v7 2217 | -10/Exiles | Entered Mines 2243 | -9/Mines | Destroyed by G-34 Mercenary with Small Laser Last Messages --------------- EX-BIN: Oh yeah, I'd suggest you stay away from the 0b10 Research branches, since the FarCom signals could be picked up there, but you're welcome to try if you really want to. And if we have to leave here due to unforeseen circumstances, don't worry the FarCom system will continue to maintain contact via our distributed network. EX-BIN: And don't even think about spreading that code around. We're gonna change it right after you leave. Most certainly not to something like 1234 which I did last time as a little joke and some thief managed to sneak in here and steal a few of HEX's prototypes. System corrupted: Substantial component data lost. System corrupted: Component data lost. LOCATION=UNKNOWN GOAL=ESCAPE Receiving FarCom transmissions... T-07 Excavator is excavating. Map ----- +----------------------------------------------------+ | ???????????????????????????? ??????????????? | | ???????????????????????????? #??????????????? | | ???????????????????????????? #??????????????? | | ???????????????????????????? #??????????????? | | ??????????????????########## ##?????????????? | | ??????????????????# #?????????????? | | ??????????????????? #?????????????? | | ??????????????????# """ #?????????????? | | ??????????????????# """ #?????????????? | | ??????????????????# """ #?????????????? | | ??????????????????# #?????????????? | | ??????????????????# #?????????????? | | ??????????????????####### ####?????????????? | | ????????????????????##### ######## #???????? | | ????????????????????# t #???????? | | ????????????????????# ### ##########???????? | | ????????????????????# ## ##???????????????? | | ??????????????????### ##??????????????? | | ?????????????????## #??????????????? | | ?????????????????# #???##?????????? | | ?????????????????## g ##?# #????????? | | ??????????????????## g ### #?????????? | | ???????????????????## b #?????????? | | ???????????????????## #?????????? | | ??????????????????## ######?????????? | | ??????????????????# @####??????????????? | | ???????????????# ###?????????????????? | | ???????????? #????????????????????? | | ??????????? #?????????????????????? | | ??????????? #####??????????????????????? | | ???????????? ?????????????????????????????? | | ???????????? ???????????????????????????????? | | ????????????????????????????????????????????? | | ????????????????????????????????????????????? | | ????????????????????????????????????????????? | | ????????????????????????????????????????????? | | ????????????????????????????????????????????? | | ????????????????????????????????????????????? | | ????????????????????????????????????????????? | | ????????????????????????????????????????????? | | ????????????????????????????????????????????? | | | | | | | | | | | | | | | | | | | +----------------------------------------------------+ Best States ------------- Heat Dissipation 25 Energy Generation 14 Energy Capacity 250 Matter Stores 300 Matter Capacity 300 Sight Range 16 Robot Scan Range 20 Terrain Scan Density 10 Evasion (%) 41 Recoil Reduction 2 Item Schematics ----------------- None Robot Schematics ------------------ None Fabricated ------------ Nothing Alien Tech Used ----------------- None Achievements -------------- None Challenges ------------ None Game ------ Seed SalvageDisruptionBiocell Manual? 0 Play Time 00:13:06 Cumulative 84.6 hours Start 2024.08.27 @ 18:42:20 End 2024.08.27 @ 18:55:15 Sessions 1 Manual Loads 0 Difficulty Rogue Special Mode None Game No. 79 Rogue 79 Adventurer 0 Explorer 0 Win Type - Total 0 Types 0/0/0/0/0/0/0/0/0 Lore% 25 Gallery% 49 Achievement% 37 Wizard Run 0 Options --------- Layout 2 ASCII 0 Keyboard 0 Movement Arrows Keybinds 0 Fullscreen 1 Font 16/Terminus Map View 55x47 Zoom Use 0% Tactical HUD 0 Map Filters NONE Filters NONE Steam 1 RUN: 82ffcb46-9a9d-40a0-affc-e24962baba06